[Event "Titled Tuesday Blitz April 18 Early 2023"]
[White "Khromkin, Andrey"]
[Black "Rakotomaharo, Fy Antenaina"]
[WhiteFideId "4154126"]
[BlackFideId "13100050"]
[WhiteElo "2382"]
[BlackElo "2427"]
[Result "1-0"]
[Round "02"]
[TimeControl "180+2"]
[Date "2023.04.18"]
[WhiteClock "0:01:06"]
[BlackClock "0:00:45"]

1. d4 {[%clk 0:03:00]}  Nf6 {[%clk 0:03:00]} 2. c4 {[%clk 0:03:00]}  g6 {[%clk 0:02:59]} 3. Nf3 {[%clk 0:03:01]}  Bg7 {[%clk 0:03:00]} 4. Nc3 {[%clk 0:03:02]}  d5 {[%clk 0:03:00]} 5. cxd5 {[%clk 0:03:01]}  Nxd5 {[%clk 0:03:01]} 6. g3 {[%clk 0:03:01]}  O-O {[%clk 0:03:01]} 7. Bg2 {[%clk 0:03:01]}  c5 {[%clk 0:03:02]} 8. O-O {[%clk 0:03:01]}  Nxc3 {[%clk 0:03:00]} 9. bxc3 {[%clk 0:03:01]}  Nc6 {[%clk 0:03:01]} 10. Be3 {[%clk 0:02:56]}  Qa5 {[%clk 0:02:59]} 11. Nd2 {[%clk 0:02:55]}  Rd8 {[%clk 0:02:37]} 12. Nb3 {[%clk 0:02:41]}  Qxc3 {[%clk 0:02:26]} 13. Rc1 {[%clk 0:02:19]}  Qb4 {[%clk 0:02:24]} 14. d5 {[%clk 0:02:10]}  Nd4 {[%clk 0:01:47]} 15. Rxc5 {[%clk 0:01:50]}  Nxb3 {[%clk 0:01:40]} 16. Qxb3 {[%clk 0:01:49]}  Qxb3 {[%clk 0:01:38]} 17. axb3 {[%clk 0:01:49]}  Be5 {[%clk 0:01:32]} 18. Bf4 {[%clk 0:01:41]}  Bxf4 {[%clk 0:01:12]} 19. gxf4 {[%clk 0:01:40]}  a5 {[%clk 0:01:12]} 20. Rc7 {[%clk 0:01:36]}  b6 {[%clk 0:01:12]} 21. d6 {[%clk 0:01:31]}  Rb8 {[%clk 0:00:58]} 22. dxe7 {[%clk 0:01:31]}  Re8 {[%clk 0:00:58]} 23. Bc6 {[%clk 0:01:31]}  Bh3 {[%clk 0:00:58]} 24. Bxe8 {[%clk 0:01:23]}  Rxe8 {[%clk 0:00:57]} 25. Rd1 {[%clk 0:01:22]}  f6 {[%clk 0:00:57]} 26. Rd8 {[%clk 0:01:20]}  Kf7 {[%clk 0:00:58]} 27. Rxe8 {[%clk 0:01:20]}  Kxe8 {[%clk 0:00:59]} 28. Rb7 {[%clk 0:01:17]}  Bd7 {[%clk 0:00:51]} 29. Rxb6 {[%clk 0:01:15]}  Kxe7 {[%clk 0:00:52]} 30. Ra6 {[%clk 0:01:15]}  Be6 {[%clk 0:00:52]} 31. Rxa5 {[%clk 0:01:14]}  Bxb3 {[%clk 0:00:52]} 32. e4 {[%clk 0:01:12]}  h5 {[%clk 0:00:51]} 33. f3 {[%clk 0:01:12]}  Bc4 {[%clk 0:00:50]} 34. Kf2 {[%clk 0:01:12]}  Ke6 {[%clk 0:00:50]} 35. Ke3 {[%clk 0:01:12]}  Ke7 {[%clk 0:00:49]} 36. f5 {[%clk 0:01:12]}  g5 {[%clk 0:00:49]} 37. Kd4 {[%clk 0:01:11]}  Be2 {[%clk 0:00:49]} 38. Ra7+ {[%clk 0:01:11]}  Ke8 {[%clk 0:00:46]} 39. e5 {[%clk 0:01:11]}  fxe5+ {[%clk 0:00:45]} 40. Kxe5 {[%clk 0:01:12]}  Bxf3 {[%clk 0:00:46]} 41. Kf6 {[%clk 0:01:06]}  g4 {[%clk 0:00:45]} 42. Kg7 {[%clk 0:01:06]} 1-0


[Site "https://www.chess.com"]

[Event "Titled Tuesday Blitz April 18 Early 2023"]
[White "Kaganskiy, Gleb"]
[Black "Bocharov, Dmitry"]
[WhiteFideId "4132025"]
[BlackFideId "4138716"]
[WhiteElo "2165"]
[BlackElo "2469"]
[Result "0-1"]
[Round "02"]
[TimeControl "180+2"]
[Date "2023.04.18"]
[WhiteClock "0:01:34"]
[BlackClock "0:02:01"]

1. e4 {[%clk 0:03:00]}  c5 {[%clk 0:02:59]} 2. Nf3 {[%clk 0:03:00]}  d6 {[%clk 0:02:59]} 3. d4 {[%clk 0:03:00]}  cxd4 {[%clk 0:03:00]} 4. Nxd4 {[%clk 0:03:01]}  Nf6 {[%clk 0:03:00]} 5. Nc3 {[%clk 0:03:01]}  a6 {[%clk 0:03:01]} 6. Rg1 {[%clk 0:03:01]}  h5 {[%clk 0:02:56]} 7. h3 {[%clk 0:02:47]}  e5 {[%clk 0:02:56]} 8. Nb3 {[%clk 0:02:46]}  h4 {[%clk 0:02:55]} 9. Be3 {[%clk 0:02:38]}  Be7 {[%clk 0:02:52]} 10. g4 {[%clk 0:02:33]}  hxg3 {[%clk 0:02:52]} 11. Rxg3 {[%clk 0:02:33]}  g6 {[%clk 0:02:49]} 12. Qd2 {[%clk 0:02:26]}  Be6 {[%clk 0:02:48]} 13. O-O-O {[%clk 0:02:25]}  Nbd7 {[%clk 0:02:48]} 14. f4 {[%clk 0:02:15]}  Rc8 {[%clk 0:02:45]} 15. Bd3 {[%clk 0:01:58]}  Nh5 {[%clk 0:02:45]} 16. Rf3 {[%clk 0:01:56]}  exf4 {[%clk 0:02:37]} 17. Bd4 {[%clk 0:01:50]}  Ne5 {[%clk 0:02:36]} 18. Rxf4 {[%clk 0:01:49]}  Nxf4 {[%clk 0:02:36]} 19. Qxf4 {[%clk 0:01:47]}  Bg5 {[%clk 0:02:34]} 20. Bxe5 {[%clk 0:01:46]}  Bxf4+ {[%clk 0:02:26]} 21. Bxf4 {[%clk 0:01:47]}  Rxh3 {[%clk 0:02:10]} 22. Bf1 {[%clk 0:01:43]}  Rhxc3 {[%clk 0:02:08]} 23. bxc3 {[%clk 0:01:42]}  Qf6 {[%clk 0:02:09]} 24. Bxd6 {[%clk 0:01:39]}  Qxc3 {[%clk 0:02:08]} 25. Nd4 {[%clk 0:01:36]}  Qa1+ {[%clk 0:02:05]} 26. Kd2 {[%clk 0:01:34]}  Qxd4+ {[%clk 0:02:04]} 27. Kc1 {[%clk 0:01:35]}  Qa1+ {[%clk 0:02:01]} 28. Kd2 {[%clk 0:01:34]}  Qc3+ {[%clk 0:02:02]} 29. Kc1 {[%clk 0:01:34]}  Qxc2# {[%clk 0:02:01]} 0-1


[Site "https://www.chess.com"]

[Event "Titled Tuesday Blitz April 18 Early 2023"]
[White "Andreev, Konstantin"]
[Black "brm72"]
[WhiteFideId "24239305"]
[WhiteElo "2106"]
[BlackElo "2673"]
[Result "1-0"]
[Round "02"]
[TimeControl "180+2"]
[Date "2023.04.18"]
[WhiteClock "0:00:42"]
[BlackClock "0:00:28"]

1. e4 {[%clk 0:03:00]}  c6 {[%clk 0:02:59]} 2. d4 {[%clk 0:03:00]}  d5 {[%clk 0:03:00]} 3. e5 {[%clk 0:03:01]}  c5 {[%clk 0:03:00]} 4. dxc5 {[%clk 0:03:01]}  e6 {[%clk 0:03:00]} 5. Nf3 {[%clk 0:03:02]}  Bxc5 {[%clk 0:02:57]} 6. Bd3 {[%clk 0:03:03]}  Nc6 {[%clk 0:02:56]} 7. O-O {[%clk 0:03:02]}  Nge7 {[%clk 0:02:57]} 8. a3 {[%clk 0:03:00]}  Ng6 {[%clk 0:02:56]} 9. Re1 {[%clk 0:02:58]}  O-O {[%clk 0:02:50]} 10. b4 {[%clk 0:02:57]}  Be7 {[%clk 0:02:50]} 11. g3 {[%clk 0:02:56]}  a5 {[%clk 0:02:50]} 12. b5 {[%clk 0:02:55]}  Nb8 {[%clk 0:02:50]} 13. Bb2 {[%clk 0:02:54]}  Nd7 {[%clk 0:02:47]} 14. Nbd2 {[%clk 0:02:54]}  b6 {[%clk 0:02:46]} 15. c4 {[%clk 0:02:49]}  Bb7 {[%clk 0:02:45]} 16. cxd5 {[%clk 0:02:45]}  Bxd5 {[%clk 0:02:46]} 17. Be4 {[%clk 0:02:45]}  Nc5 {[%clk 0:02:46]} 18. Qe2 {[%clk 0:02:38]}  Bxe4 {[%clk 0:02:42]} 19. Nxe4 {[%clk 0:02:39]}  Nxe4 {[%clk 0:02:30]} 20. Qxe4 {[%clk 0:02:40]}  Bc5 {[%clk 0:02:31]} 21. Red1 {[%clk 0:02:35]}  Qe7 {[%clk 0:02:31]} 22. a4 {[%clk 0:02:34]}  Rfd8 {[%clk 0:02:30]} 23. Nd4 {[%clk 0:02:31]}  Qc7 {[%clk 0:02:22]} 24. Nc6 {[%clk 0:02:29]}  Rxd1+ {[%clk 0:02:20]} 25. Rxd1 {[%clk 0:02:30]}  Re8 {[%clk 0:02:18]} 26. h4 {[%clk 0:02:25]}  Ne7 {[%clk 0:02:18]} 27. Nxe7+ {[%clk 0:02:17]}  Qxe7 {[%clk 0:02:18]} 28. Bd4 {[%clk 0:02:12]}  Rc8 {[%clk 0:02:18]} 29. Bxc5 {[%clk 0:02:11]}  Qxc5 {[%clk 0:02:19]} 30. Qb7 {[%clk 0:02:05]}  h5 {[%clk 0:02:07]} 31. Rd6 {[%clk 0:01:50]}  Rf8 {[%clk 0:01:56]} 32. Qxb6 {[%clk 0:01:38]}  Qxe5 {[%clk 0:01:56]} 33. Rd8 {[%clk 0:01:35]}  Qe1+ {[%clk 0:01:55]} 34. Kg2 {[%clk 0:01:34]}  Qe4+ {[%clk 0:01:36]} 35. Kh2 {[%clk 0:01:33]}  Rxd8 {[%clk 0:01:37]} 36. Qxd8+ {[%clk 0:01:34]}  Kh7 {[%clk 0:01:38]} 37. b6 {[%clk 0:01:28]}  Qf3 {[%clk 0:01:14]} 38. Kg1 {[%clk 0:01:21]}  Qe4 {[%clk 0:01:08]} 39. Qc7 {[%clk 0:01:14]}  Qe1+ {[%clk 0:01:08]} 40. Kg2 {[%clk 0:01:14]}  Qe4+ {[%clk 0:01:08]} 41. Kh2 {[%clk 0:01:14]}  Qe2 {[%clk 0:01:03]} 42. Qc5 {[%clk 0:01:10]}  Qf3 {[%clk 0:00:58]} 43. Qd4 {[%clk 0:01:01]}  e5 {[%clk 0:00:54]} 44. Qb2 {[%clk 0:00:51]}  Qb7 {[%clk 0:00:52]} 45. Kg1 {[%clk 0:00:51]}  f6 {[%clk 0:00:49]} 46. Qb5 {[%clk 0:00:49]}  Qe4 {[%clk 0:00:33]} 47. b7 {[%clk 0:00:44]}  Qe1+ {[%clk 0:00:30]} 48. Kg2 {[%clk 0:00:44]}  Qe4+ {[%clk 0:00:30]} 49. Kh2 {[%clk 0:00:42]}  Qf3 {[%clk 0:00:28]} 50. Qb6 {[%clk 0:00:42]} 1-0


[Site "https://www.chess.com"]

[Event "Titled Tuesday Blitz April 18 Early 2023"]
[White "Leve, Nitai"]
[Black "polandchessplayer"]
[WhiteFideId "2006898"]
[WhiteElo "2144"]
[BlackElo "2671"]
[Result "0-1"]
[Round "02"]
[TimeControl "180+2"]
[Date "2023.04.18"]
[WhiteClock "0:00:09"]
[BlackClock "0:01:06"]

1. e4 {[%clk 0:03:00]}  c6 {[%clk 0:02:59]} 2. d4 {[%clk 0:02:59]}  d5 {[%clk 0:03:00]} 3. exd5 {[%clk 0:03:00]}  cxd5 {[%clk 0:03:01]} 4. c4 {[%clk 0:03:00]}  Nf6 {[%clk 0:03:01]} 5. Nc3 {[%clk 0:03:01]}  e6 {[%clk 0:03:01]} 6. Nf3 {[%clk 0:03:01]}  Nc6 {[%clk 0:03:01]} 7. cxd5 {[%clk 0:02:59]}  Nxd5 {[%clk 0:03:02]} 8. Bd3 {[%clk 0:02:59]}  Be7 {[%clk 0:03:02]} 9. Qb3 {[%clk 0:02:55]}  Bf6 {[%clk 0:03:00]} 10. O-O {[%clk 0:02:54]}  O-O {[%clk 0:03:00]} 11. Be4 {[%clk 0:02:50]}  Nce7 {[%clk 0:02:54]} 12. Bg5 {[%clk 0:02:39]}  Bxg5 {[%clk 0:02:39]} 13. Nxg5 {[%clk 0:02:40]}  h6 {[%clk 0:02:40]} 14. Nf3 {[%clk 0:02:36]}  Bd7 {[%clk 0:02:34]} 15. Ne5 {[%clk 0:01:18]}  Bc6 {[%clk 0:02:24]} 16. Nxc6 {[%clk 0:01:17]}  bxc6 {[%clk 0:02:17]} 17. Rac1 {[%clk 0:01:16]}  Rb8 {[%clk 0:02:17]} 18. Qa3 {[%clk 0:01:15]}  a5 {[%clk 0:02:12]} 19. Bb1 {[%clk 0:01:14]}  Rb4 {[%clk 0:02:11]} 20. Rfd1 {[%clk 0:01:06]}  Qb6 {[%clk 0:02:02]} 21. Na4 {[%clk 0:01:01]}  Qb5 {[%clk 0:02:00]} 22. b3 {[%clk 0:00:44]}  Qe2 {[%clk 0:01:51]} 23. Bd3 {[%clk 0:00:34]}  Qg4 {[%clk 0:01:47]} 24. h3 {[%clk 0:00:31]}  Qg5 {[%clk 0:01:46]} 25. Nc5 {[%clk 0:00:29]}  Kh8 {[%clk 0:01:19]} 26. Kf1 {[%clk 0:00:17]}  Rxd4 {[%clk 0:01:17]} 27. Qxa5 {[%clk 0:00:12]}  Nf4 {[%clk 0:01:07]} 28. g3 {[%clk 0:00:12]}  Nxd3 {[%clk 0:01:07]} 29. Nxd3 {[%clk 0:00:09]}  Qxa5 {[%clk 0:01:06]} 0-1


[Site "https://www.chess.com"]

[Event "Titled Tuesday Blitz April 18 Early 2023"]
[White "Toropov, Pavel"]
[Black "Valle Maytin, Luis Enrique"]
[WhiteFideId "24129178"]
[BlackFideId "3503666"]
[WhiteElo "2182"]
[BlackElo "2225"]
[Result "1-0"]
[Round "02"]
[TimeControl "180+2"]
[Date "2023.04.18"]
[WhiteClock "0:00:36"]
[BlackClock "0:00:27"]

1. e4 {[%clk 0:03:00]}  c6 {[%clk 0:02:59]} 2. d4 {[%clk 0:03:01]}  d5 {[%clk 0:03:00]} 3. exd5 {[%clk 0:03:01]}  cxd5 {[%clk 0:02:57]} 4. Bd3 {[%clk 0:03:01]}  Nc6 {[%clk 0:02:57]} 5. c3 {[%clk 0:03:01]}  Nf6 {[%clk 0:02:56]} 6. h3 {[%clk 0:03:01]}  g6 {[%clk 0:02:54]} 7. Qc2 {[%clk 0:03:01]}  Bg7 {[%clk 0:02:53]} 8. Nf3 {[%clk 0:03:01]}  O-O {[%clk 0:02:53]} 9. Bf4 {[%clk 0:03:00]}  a6 {[%clk 0:02:44]} 10. Nbd2 {[%clk 0:03:00]}  b5 {[%clk 0:02:44]} 11. a3 {[%clk 0:02:59]}  Na5 {[%clk 0:02:43]} 12. O-O {[%clk 0:02:53]}  Bb7 {[%clk 0:02:42]} 13. b4 {[%clk 0:02:45]}  Nc4 {[%clk 0:02:43]} 14. Nb3 {[%clk 0:02:44]}  Ne4 {[%clk 0:02:40]} 15. Rfe1 {[%clk 0:02:38]}  Ncd6 {[%clk 0:02:32]} 16. a4 {[%clk 0:02:30]}  Rc8 {[%clk 0:02:26]} 17. Nc5 {[%clk 0:02:27]}  Nxc5 {[%clk 0:02:22]} 18. bxc5 {[%clk 0:02:25]}  Nc4 {[%clk 0:02:22]} 19. axb5 {[%clk 0:02:23]}  axb5 {[%clk 0:02:22]} 20. Qb3 {[%clk 0:02:20]}  Bc6 {[%clk 0:02:21]} 21. Ra7 {[%clk 0:02:16]}  Ra8 {[%clk 0:02:20]} 22. Raxe7 {[%clk 0:02:11]}  Ra3 {[%clk 0:02:11]} 23. Qb4 {[%clk 0:02:09]}  Qa8 {[%clk 0:02:05]} 24. Ne5 {[%clk 0:01:50]}  Ra4 {[%clk 0:01:30]} 25. Qb1 {[%clk 0:01:45]}  Ra3 {[%clk 0:01:25]} 26. Bxc4 {[%clk 0:00:58]}  bxc4 {[%clk 0:01:22]} 27. Qb6 {[%clk 0:00:54]}  Ra6 {[%clk 0:01:06]} 28. Qb1 {[%clk 0:00:40]}  Rb8 {[%clk 0:00:27]} 29. Qc1 {[%clk 0:00:39]}  Rb7 {[%clk 0:00:27]} 30. Nxc6 {[%clk 0:00:36]} 1-0


[Site "https://www.chess.com"]

[Event "Titled Tuesday Blitz April 18 Early 2023"]
[White "Arias, Juan Cruz"]
[Black "Rangel, Daniel"]
[WhiteFideId "118540"]
[BlackFideId "2124475"]
[WhiteElo "2243"]
[BlackElo "2256"]
[Result "0-1"]
[Round "02"]
[TimeControl "180+2"]
[Date "2023.04.18"]
[WhiteClock "0:00:04"]
[BlackClock "0:00:01"]

1. e4 {[%clk 0:03:00]}  c5 {[%clk 0:02:59]} 2. Nc3 {[%clk 0:03:00]}  g6 {[%clk 0:02:59]} 3. d4 {[%clk 0:02:59]}  cxd4 {[%clk 0:02:58]} 4. Qxd4 {[%clk 0:02:59]}  Nf6 {[%clk 0:02:58]} 5. Bb5 {[%clk 0:02:58]}  Nc6 {[%clk 0:02:57]} 6. Bxc6 {[%clk 0:02:57]}  dxc6 {[%clk 0:02:58]} 7. Qxd8+ {[%clk 0:02:58]}  Kxd8 {[%clk 0:02:56]} 8. Bf4 {[%clk 0:02:59]}  Nd7 {[%clk 0:02:54]} 9. O-O-O {[%clk 0:02:51]}  Ke8 {[%clk 0:02:54]} 10. Nge2 {[%clk 0:02:47]}  e5 {[%clk 0:02:53]} 11. Be3 {[%clk 0:02:47]}  Bc5 {[%clk 0:02:46]} 12. Bxc5 {[%clk 0:02:46]}  Nxc5 {[%clk 0:02:47]} 13. h4 {[%clk 0:02:39]}  h5 {[%clk 0:02:34]} 14. Rd2 {[%clk 0:02:36]}  Be6 {[%clk 0:02:31]} 15. f3 {[%clk 0:02:26]}  Ke7 {[%clk 0:02:30]} 16. Rhd1 {[%clk 0:02:24]}  Rad8 {[%clk 0:02:29]} 17. Rxd8 {[%clk 0:02:20]}  Rxd8 {[%clk 0:02:28]} 18. Rxd8 {[%clk 0:02:21]}  Kxd8 {[%clk 0:02:29]} 19. Kd2 {[%clk 0:02:22]}  Ke7 {[%clk 0:02:19]} 20. a3 {[%clk 0:02:21]}  Bc4 {[%clk 0:02:16]} 21. b3 {[%clk 0:02:02]}  Be6 {[%clk 0:02:05]} 22. Ke3 {[%clk 0:01:52]}  a5 {[%clk 0:01:46]} 23. g3 {[%clk 0:01:37]}  b5 {[%clk 0:01:43]} 24. Nb1 {[%clk 0:01:33]}  a4 {[%clk 0:01:33]} 25. b4 {[%clk 0:01:23]}  Nd7 {[%clk 0:01:33]} 26. Nc1 {[%clk 0:01:13]}  Nb6 {[%clk 0:01:28]} 27. Nd2 {[%clk 0:01:12]}  Kd6 {[%clk 0:01:09]} 28. Nd3 {[%clk 0:01:11]}  Nd7 {[%clk 0:01:08]} 29. f4 {[%clk 0:01:10]}  f6 {[%clk 0:01:00]} 30. Nf3 {[%clk 0:01:00]}  exf4+ {[%clk 0:00:47]} 31. gxf4 {[%clk 0:00:59]}  Bg4 {[%clk 0:00:30]} 32. Nd4 {[%clk 0:00:52]}  f5 {[%clk 0:00:23]} 33. Ne5 {[%clk 0:00:20]}  c5 {[%clk 0:00:14]} 34. Nxb5+ {[%clk 0:00:17]}  Ke7 {[%clk 0:00:12]} 35. Nxd7 {[%clk 0:00:15]}  Kxd7 {[%clk 0:00:13]} 36. e5 {[%clk 0:00:09]}  cxb4 {[%clk 0:00:11]} 37. axb4 {[%clk 0:00:09]}  Bd1 {[%clk 0:00:10]} 38. Na3 {[%clk 0:00:09]}  Kc6 {[%clk 0:00:09]} 39. Kd4 {[%clk 0:00:09]}  Bf3 {[%clk 0:00:09]} 40. c4 {[%clk 0:00:09]}  Be4 {[%clk 0:00:08]} 41. c5 {[%clk 0:00:09]}  Bd5 {[%clk 0:00:08]} 42. Kc3 {[%clk 0:00:07]}  g5 {[%clk 0:00:07]} 43. Kd4 {[%clk 0:00:08]}  gxh4 {[%clk 0:00:05]} 44. b5+ {[%clk 0:00:07]}  Kc7 {[%clk 0:00:06]} 45. Kxd5 {[%clk 0:00:06]}  h3 {[%clk 0:00:05]} 46. b6+ {[%clk 0:00:06]}  Kb7 {[%clk 0:00:05]} 47. c6+ {[%clk 0:00:01]}  Kxb6 {[%clk 0:00:05]} 48. Kd6 {[%clk 0:00:02]}  h2 {[%clk 0:00:05]} 49. c7 {[%clk 0:00:03]}  h1=Q {[%clk 0:00:05]} 50. c8=Q {[%clk 0:00:04]}  Qd1+ {[%clk 0:00:05]} 51. Ke6 {[%clk 0:00:04]}  Qb3+ {[%clk 0:00:05]} 52. Ke7 {[%clk 0:00:04]}  Qxa3+ {[%clk 0:00:06]} 53. Ke8 {[%clk 0:00:03]}  Qb3 {[%clk 0:00:05]} 54. e6 {[%clk 0:00:03]}  Kb5 {[%clk 0:00:03]} 55. Qd7+ {[%clk 0:00:03]}  Kb4 {[%clk 0:00:02]} 56. e7 {[%clk 0:00:04]}  Qg8# {[%clk 0:00:01]} 0-1


[Site "https://www.chess.com"]

[Event "Titled Tuesday Blitz April 18 Early 2023"]
[White "Dwilewicz, Katarzyna"]
[Black "Horobetz, Graham"]
[WhiteFideId "1148486"]
[BlackFideId "2047322"]
[WhiteElo "2065"]
[BlackElo "2617"]
[Result "0-1"]
[Round "02"]
[TimeControl "180+2"]
[Date "2023.04.18"]
[WhiteClock "0:00:09"]
[BlackClock "0:00:20"]

1. e4 {[%clk 0:03:00]}  c5 {[%clk 0:03:00]} 2. Nc3 {[%clk 0:02:58]}  g6 {[%clk 0:02:59]} 3. g3 {[%clk 0:02:56]}  Bg7 {[%clk 0:02:59]} 4. Bg2 {[%clk 0:02:57]}  Nc6 {[%clk 0:03:00]} 5. Nge2 {[%clk 0:02:57]}  d6 {[%clk 0:03:01]} 6. O-O {[%clk 0:02:57]}  e6 {[%clk 0:03:02]} 7. d3 {[%clk 0:02:57]}  Nge7 {[%clk 0:03:02]} 8. Be3 {[%clk 0:02:57]}  Nd4 {[%clk 0:03:02]} 9. f4 {[%clk 0:02:58]}  O-O {[%clk 0:03:02]} 10. Qd2 {[%clk 0:02:39]}  Rb8 {[%clk 0:02:59]} 11. a4 {[%clk 0:02:38]}  b6 {[%clk 0:02:58]} 12. h3 {[%clk 0:02:35]}  a6 {[%clk 0:02:58]} 13. Kh2 {[%clk 0:02:35]}  b5 {[%clk 0:02:58]} 14. axb5 {[%clk 0:02:35]}  axb5 {[%clk 0:02:58]} 15. Ra2 {[%clk 0:02:02]}  b4 {[%clk 0:02:57]} 16. Nd1 {[%clk 0:02:01]}  Nxc2 {[%clk 0:02:55]} 17. Bg1 {[%clk 0:01:48]}  Nd4 {[%clk 0:02:52]} 18. Nxd4 {[%clk 0:01:45]}  cxd4 {[%clk 0:02:51]} 19. Ra4 {[%clk 0:01:40]}  Qb6 {[%clk 0:02:48]} 20. b3 {[%clk 0:01:39]}  Bd7 {[%clk 0:02:42]} 21. Ra1 {[%clk 0:01:36]}  Rfc8 {[%clk 0:02:37]} 22. Nb2 {[%clk 0:01:36]}  Rc3 {[%clk 0:02:33]} 23. Nc4 {[%clk 0:01:36]}  Qc7 {[%clk 0:02:31]} 24. Rab1 {[%clk 0:01:31]}  d5 {[%clk 0:02:28]} 25. Ne5 {[%clk 0:01:16]}  dxe4 {[%clk 0:02:05]} 26. Bxd4 {[%clk 0:00:57]}  e3 {[%clk 0:01:32]} 27. Qxe3 {[%clk 0:00:53]}  Nf5 {[%clk 0:01:32]} 28. Qg1 {[%clk 0:00:42]}  Rc2 {[%clk 0:01:28]} 29. Rbc1 {[%clk 0:00:32]}  Rc8 {[%clk 0:01:22]} 30. Rxc2 {[%clk 0:00:31]}  Qxc2 {[%clk 0:01:23]} 31. Nxd7 {[%clk 0:00:27]}  Bxd4 {[%clk 0:01:18]} 32. Qh1 {[%clk 0:00:26]}  Bf2 {[%clk 0:01:05]} 33. Nf6+ {[%clk 0:00:21]}  Kg7 {[%clk 0:01:05]} 34. Ne4 {[%clk 0:00:21]}  Bd4 {[%clk 0:00:55]} 35. Rf3 {[%clk 0:00:18]}  Qxb3 {[%clk 0:00:53]} 36. Qe1 {[%clk 0:00:19]}  Rc2 {[%clk 0:00:50]} 37. g4 {[%clk 0:00:17]}  Qb2 {[%clk 0:00:44]} 38. Qf1 {[%clk 0:00:11]}  Nh4 {[%clk 0:00:35]} 39. Rg3 {[%clk 0:00:09]}  Rc1 {[%clk 0:00:20]} 0-1


[Site "https://www.chess.com"]

[Event "Titled Tuesday Blitz April 18 Early 2023"]
[White "Trakru, Rohun"]
[Black "Kula, Robert"]
[WhiteFideId "2097613"]
[BlackFideId "1101218"]
[WhiteElo "1852"]
[BlackElo "2180"]
[Result "1-0"]
[Round "02"]
[TimeControl "180+2"]
[Date "2023.04.18"]
[WhiteClock "0:00:48"]
[BlackClock "0:01:24"]

1. a3 {[%clk 0:02:59]}  e5 {[%clk 0:02:59]} 2. c4 {[%clk 0:02:59]}  Nf6 {[%clk 0:02:58]} 3. Nc3 {[%clk 0:02:58]}  b6 {[%clk 0:02:57]} 4. Nf3 {[%clk 0:02:57]}  Bb7 {[%clk 0:02:57]} 5. Nxe5 {[%clk 0:02:57]}  d5 {[%clk 0:02:54]} 6. cxd5 {[%clk 0:02:54]}  Nxd5 {[%clk 0:02:55]} 7. Qb3 {[%clk 0:02:45]}  Qe7 {[%clk 0:02:37]} 8. d4 {[%clk 0:02:42]}  Nxc3 {[%clk 0:02:31]} 9. bxc3 {[%clk 0:02:40]}  f6 {[%clk 0:02:32]} 10. Nf3 {[%clk 0:02:32]}  Nd7 {[%clk 0:02:32]} 11. e3 {[%clk 0:02:18]}  O-O-O {[%clk 0:02:24]} 12. a4 {[%clk 0:02:14]}  a5 {[%clk 0:02:24]} 13. Bd3 {[%clk 0:02:04]}  g5 {[%clk 0:02:24]} 14. Ba3 {[%clk 0:02:03]}  Qg7 {[%clk 0:02:20]} 15. Bxf8 {[%clk 0:02:03]}  Rhxf8 {[%clk 0:02:19]} 16. Bf5 {[%clk 0:02:02]}  Kb8 {[%clk 0:02:18]} 17. Qb5 {[%clk 0:01:48]}  h5 {[%clk 0:02:05]} 18. Rg1 {[%clk 0:01:34]}  h4 {[%clk 0:02:03]} 19. c4 {[%clk 0:01:33]}  h3 {[%clk 0:02:01]} 20. c5 {[%clk 0:01:33]}  hxg2 {[%clk 0:01:58]} 21. c6 {[%clk 0:01:33]}  Ne5 {[%clk 0:01:47]} 22. dxe5 {[%clk 0:01:30]}  fxe5 {[%clk 0:01:41]} 23. cxb7 {[%clk 0:01:19]}  e4 {[%clk 0:01:41]} 24. Nd4 {[%clk 0:01:06]}  Kxb7 {[%clk 0:01:34]} 25. Bxe4+ {[%clk 0:01:05]}  Ka7 {[%clk 0:01:31]} 26. Nc6+ {[%clk 0:01:04]}  Kb7 {[%clk 0:01:31]} 27. Nxd8+ {[%clk 0:00:59]}  Kc8 {[%clk 0:01:31]} 28. Rd1 {[%clk 0:00:47]}  Qc3+ {[%clk 0:01:30]} 29. Ke2 {[%clk 0:00:47]}  Rxd8 {[%clk 0:01:25]} 30. Qa6+ {[%clk 0:00:47]}  Kb8 {[%clk 0:01:24]} 31. Rxd8# {[%clk 0:00:48]} 1-0


[Site "https://www.chess.com"]

[Event "Titled Tuesday Blitz April 18 Early 2023"]
[White "Hoffmann, Asa"]
[Black "Bayramov, Zaur"]
[WhiteFideId "2001470"]
[BlackFideId "13405080"]
[WhiteElo "2117"]
[BlackElo "2195"]
[Result "1-0"]
[Round "02"]
[TimeControl "180+2"]
[Date "2023.04.18"]
[WhiteClock "0:01:18"]
[BlackClock "0:00:29"]

1. d4 {[%clk 0:02:53]}  Nf6 {[%clk 0:02:59]} 2. Bg5 {[%clk 0:02:52]}  e6 {[%clk 0:02:58]} 3. Nd2 {[%clk 0:02:51]}  d5 {[%clk 0:02:57]} 4. e3 {[%clk 0:02:51]}  c5 {[%clk 0:02:56]} 5. c3 {[%clk 0:02:51]}  Nc6 {[%clk 0:02:56]} 6. f4 {[%clk 0:02:51]}  Be7 {[%clk 0:02:48]} 7. Bd3 {[%clk 0:02:50]}  h6 {[%clk 0:02:44]} 8. Bh4 {[%clk 0:02:50]}  g5 {[%clk 0:02:32]} 9. Bg3 {[%clk 0:02:43]}  gxf4 {[%clk 0:02:32]} 10. Bxf4 {[%clk 0:02:41]}  Bd6 {[%clk 0:02:32]} 11. Ne2 {[%clk 0:02:39]}  Bxf4 {[%clk 0:02:14]} 12. Nxf4 {[%clk 0:02:36]}  Bd7 {[%clk 0:02:11]} 13. O-O {[%clk 0:02:35]}  Qe7 {[%clk 0:02:11]} 14. Qf3 {[%clk 0:02:33]}  O-O-O {[%clk 0:01:52]} 15. Ng6 {[%clk 0:02:31]}  fxg6 {[%clk 0:01:51]} 16. Qxf6 {[%clk 0:02:30]}  Qd6 {[%clk 0:01:51]} 17. Bxg6 {[%clk 0:02:13]}  Rdf8 {[%clk 0:01:51]} 18. Qh4 {[%clk 0:02:11]}  e5 {[%clk 0:01:50]} 19. Bh5 {[%clk 0:02:05]}  cxd4 {[%clk 0:01:42]} 20. cxd4 {[%clk 0:02:04]}  exd4 {[%clk 0:01:27]} 21. exd4 {[%clk 0:02:04]}  Rxf1+ {[%clk 0:01:05]} 22. Rxf1 {[%clk 0:02:03]}  Rg8 {[%clk 0:01:06]} 23. Nf3 {[%clk 0:01:55]}  Rf8 {[%clk 0:01:01]} 24. Bg4 {[%clk 0:01:52]}  Rf4 {[%clk 0:00:55]} 25. Bxd7+ {[%clk 0:01:50]}  Kxd7 {[%clk 0:00:56]} 26. Qh3+ {[%clk 0:01:36]}  Kc7 {[%clk 0:00:56]} 27. Rc1 {[%clk 0:01:34]}  Kb8 {[%clk 0:00:52]} 28. Qg3 {[%clk 0:01:34]}  Qf6 {[%clk 0:00:42]} 29. Ne5 {[%clk 0:01:25]}  Nxe5 {[%clk 0:00:32]} 30. dxe5 {[%clk 0:01:22]}  Qf8 {[%clk 0:00:29]} 31. e6 {[%clk 0:01:18]} 1-0


[Site "https://www.chess.com"]